[Event "*** Titled Tuesday Blitz"]
[Site "Chess.com"]
[Date "2020.11.24"]
[Round "7"]
[White "Semen_Khanin"]
[Black "ChessicallyInclined"]
[Result "1-0"]
[WhiteElo "2782"]
[BlackElo "2550"]
[TimeControl "180+1"]
[EndTime "11:31:50 PST"]
[Termination "Semen_Khanin won by checkmate"]

1. e4 {[%clk 0:03:00.9]} 1... d6 {[%clk 0:03:00.1]} 2. d4 {[%clk 0:03:00.8]}
2... Nf6 {[%clk 0:03:00.8]} 3. Nc3 {[%clk 0:03:01.1]} 3... g6 {[%clk 0:03:01.3]}
4. Nf3 {[%clk 0:02:59.7]} 4... Bg7 {[%clk 0:03:00.8]} 5. Be3 {[%clk 0:03:00.4]}
5... O-O {[%clk 0:03:00.9]} 6. Qd2 {[%clk 0:03:00.9]} 6... c6 {[%clk 0:03:01.4]}
7. Bh6 {[%clk 0:02:59.8]} 7... b5 {[%clk 0:02:58.3]} 8. Bd3 {[%clk 0:02:59.8]}
8... Bg4 {[%clk 0:02:55.2]} 9. h4 {[%clk 0:02:58.7]} 9... Nbd7 {[%clk
0:02:41.3]} 10. h5 {[%clk 0:02:51]} 10... Nxh5 {[%clk 0:02:18.3]} 11. Nh2 {[%clk
0:02:49.4]} 11... Be6 {[%clk 0:01:21.1]} 12. g4 {[%clk 0:02:48.3]} 12... Nhf6
{[%clk 0:01:19]} 13. f3 {[%clk 0:02:48.8]} 13... b4 {[%clk 0:00:54.9]} 14. Ne2
{[%clk 0:02:48.3]} 14... Nb6 {[%clk 0:00:44]} 15. Nf1 {[%clk 0:02:47.7]} 15...
c5 {[%clk 0:00:28.2]} 16. Nfg3 {[%clk 0:02:40.7]} 16... c4 {[%clk 0:00:22.6]}
17. Bxg7 {[%clk 0:02:40.8]} 17... Kxg7 {[%clk 0:00:22.4]} 18. Qh6+ {[%clk
0:02:41]} 18... Kg8 {[%clk 0:00:22.4]} 19. g5 {[%clk 0:02:41.2]} 19... Nbd7
{[%clk 0:00:18]} 20. gxf6 {[%clk 0:02:39.4]} 20... Nxf6 {[%clk 0:00:18.9]} 21.
e5 {[%clk 0:02:39.9]} 21... cxd3 {[%clk 0:00:11.3]} 22. exf6 {[%clk 0:02:39.3]}
22... d2+ {[%clk 0:00:11]} 23. Kxd2 {[%clk 0:02:39.2]} 23... exf6 {[%clk
0:00:09.9]} 24. Qxh7# {[%clk 0:02:39.3]} 1-0

[Event "*** Titled Tuesday Blitz"]
[Site "Chess.com"]
[Date "2020.11.24"]
[Round "7"]
[White "pavelalexandru07"]
[Black "Quiet_Desperation"]
[Result "0-1"]
[WhiteElo "2288"]
[BlackElo "1698"]
[TimeControl "180+1"]
[EndTime "11:32:16 PST"]
[Termination "Quiet_Desperation won by resignation"]

1. Nf3 {[%clk 0:03:00.1]} 1... d5 {[%clk 0:02:57.4]} 2. g3 {[%clk 0:02:59.3]}
2... c6 {[%clk 0:02:57.8]} 3. Bg2 {[%clk 0:02:59.6]} 3... Bg4 {[%clk 0:02:58]}
4. O-O {[%clk 0:02:59.8]} 4... Nd7 {[%clk 0:02:57.4]} 5. d4 {[%clk 0:02:58.9]}
5... Bxf3 {[%clk 0:02:53.3]} 6. Bxf3 {[%clk 0:02:58.9]} 6... Ngf6 {[%clk
0:02:53.8]} 7. Bg2 {[%clk 0:02:58.7]} 7... e6 {[%clk 0:02:51.2]} 8. f3 {[%clk
0:02:59.1]} 8... Qb6 {[%clk 0:02:37]} 9. Kh1 {[%clk 0:02:49.2]} 9... h5 {[%clk
0:02:34.6]} 10. b3 {[%clk 0:02:33.4]} 10... h4 {[%clk 0:02:33.6]} 11. Be3 {[%clk
0:02:33.2]} 11... h3 {[%clk 0:02:32.6]} 12. Nd2 {[%clk 0:02:30.4]} 12... hxg2+
{[%clk 0:02:32.6]} 13. Kxg2 {[%clk 0:02:31.3]} 13... Bd6 {[%clk 0:02:19.7]} 14.
c4 {[%clk 0:02:30.9]} 14... Qc7 {[%clk 0:02:18.4]} 15. c5 {[%clk 0:02:28.5]}
15... Be7 {[%clk 0:02:18.4]} 16. Bf2 {[%clk 0:02:28]} 16... e5 {[%clk
0:02:14.6]} 17. e3 {[%clk 0:02:28.2]} 17... Nf8 {[%clk 0:02:03.5]} 18. f4 {[%clk
0:02:19.3]} 18... e4 {[%clk 0:01:57]} 19. Bg1 {[%clk 0:02:10.5]} 19... g6 {[%clk
0:01:47.3]} 20. h3 {[%clk 0:02:05.7]} 20... Qd7 {[%clk 0:01:40.3]} 21. g4 {[%clk
0:02:05.2]} 21... Ne6 {[%clk 0:01:37.5]} 22. b4 {[%clk 0:02:02.4]} 22... Nh7
{[%clk 0:01:30]} 23. a4 {[%clk 0:01:55]} 23... Ng7 {[%clk 0:01:24.9]} 24. Rb1
{[%clk 0:01:49]} 24... f5 {[%clk 0:01:23.6]} 25. g5 {[%clk 0:01:48]} 25... Bxg5
{[%clk 0:01:18]} 26. fxg5 {[%clk 0:01:46.6]} 26... Nxg5 {[%clk 0:01:18.4]} 27.
Bh2 {[%clk 0:01:45.5]} 27... f4 {[%clk 0:01:16.9]} 28. Qg4 {[%clk 0:01:26.8]}
28... f3+ {[%clk 0:01:15.9]} 29. Kg1 {[%clk 0:01:22]} 29... Nxh3+ {[%clk
0:01:15]} 0-1

[Event "*** Titled Tuesday Blitz"]
[Site "Chess.com"]
[Date "2020.11.24"]
[Round "7"]
[White "Pelopidass"]
[Black "ArjunErigaisi2003"]
[Result "0-1"]
[WhiteElo "2586"]
[BlackElo "2923"]
[TimeControl "180+1"]
[EndTime "11:32:21 PST"]
[Termination "ArjunErigaisi2003 won by resignation"]

1. e4 {[%clk 0:03:00.9]} 1... e5 {[%clk 0:02:58.9]} 2. Nf3 {[%clk 0:03:00.4]}
2... Nc6 {[%clk 0:02:59.3]} 3. Bb5 {[%clk 0:03:00.6]} 3... Nf6 {[%clk
0:02:58.8]} 4. d3 {[%clk 0:02:59.9]} 4... Bc5 {[%clk 0:02:55.3]} 5. O-O {[%clk
0:02:56.6]} 5... Nd4 {[%clk 0:02:55.1]} 6. Nxd4 {[%clk 0:02:55]} 6... Bxd4
{[%clk 0:02:56]} 7. c3 {[%clk 0:02:51.8]} 7... Bb6 {[%clk 0:02:55.8]} 8. Qf3
{[%clk 0:02:48.9]} 8... c6 {[%clk 0:02:50.3]} 9. Ba4 {[%clk 0:02:48.6]} 9... d6
{[%clk 0:02:50.3]} 10. Bb3 {[%clk 0:02:39.7]} 10... Be6 {[%clk 0:02:48.7]} 11.
Bg5 {[%clk 0:02:31.8]} 11... h6 {[%clk 0:02:48.5]} 12. Bxf6 {[%clk 0:02:30.3]}
12... Qxf6 {[%clk 0:02:49.4]} 13. Qxf6 {[%clk 0:02:29.3]} 13... gxf6 {[%clk
0:02:50.3]} 14. Bxe6 {[%clk 0:02:26.9]} 14... fxe6 {[%clk 0:02:51.2]} 15. Nd2
{[%clk 0:02:27.5]} 15... h5 {[%clk 0:02:45.5]} 16. Nc4 {[%clk 0:02:25.6]} 16...
Bc7 {[%clk 0:02:44.6]} 17. Rae1 {[%clk 0:02:17.2]} 17... Ke7 {[%clk 0:02:43.5]}
18. f4 {[%clk 0:02:13.7]} 18... exf4 {[%clk 0:02:41.6]} 19. d4 {[%clk
0:02:09.4]} 19... e5 {[%clk 0:02:34.6]} 20. Rf3 {[%clk 0:01:50.7]} 20... Rag8
{[%clk 0:02:33.1]} 21. Kf1 {[%clk 0:01:46.7]} 21... Rg4 {[%clk 0:02:31.9]} 22.
Re2 {[%clk 0:01:44.5]} 22... b5 {[%clk 0:02:30.8]} 23. Nd2 {[%clk 0:01:43.7]}
23... a5 {[%clk 0:02:30.1]} 24. h3 {[%clk 0:01:38.2]} 24... Rg6 {[%clk
0:02:28.3]} 25. Rd3 {[%clk 0:01:38.7]} 25... Bb6 {[%clk 0:02:20.2]} 26. Nf3
{[%clk 0:01:37.5]} 26... Rg3 {[%clk 0:02:20.4]} 27. dxe5 {[%clk 0:01:31.8]}
27... fxe5 {[%clk 0:02:19.3]} 28. Red2 {[%clk 0:01:31.6]} 28... Be3 {[%clk
0:02:16.6]} 29. Rd1 {[%clk 0:01:21.3]} 29... Bc5 {[%clk 0:02:15.7]} 30. Nh4
{[%clk 0:01:14.4]} 30... Rxd3 {[%clk 0:02:15.2]} 31. Rxd3 {[%clk 0:01:13.7]}
31... Rg8 {[%clk 0:02:16.1]} 32. a3 {[%clk 0:01:09.1]} 32... a4 {[%clk
0:02:15.5]} 33. Ke2 {[%clk 0:01:06.3]} 33... Ke6 {[%clk 0:02:13.3]} 34. Rd1
{[%clk 0:00:53.8]} 34... d5 {[%clk 0:02:12.1]} 35. exd5+ {[%clk 0:00:48.6]}
35... cxd5 {[%clk 0:02:13]} 36. Kf1 {[%clk 0:00:46.2]} 36... e4 {[%clk
0:02:10.5]} 0-1

[Event "*** Titled Tuesday Blitz"]
[Site "Chess.com"]
[Date "2020.11.24"]
[Round "7"]
[White "Zhigalko_Sergei"]
[Black "FMJoseHerrera"]
[Result "1-0"]
[WhiteElo "2891"]
[BlackElo "2583"]
[TimeControl "180+1"]
[EndTime "11:32:25 PST"]
[Termination "Zhigalko_Sergei won by resignation"]

1. e4 {[%clk 0:03:00.9]} 1... c5 {[%clk 0:02:51.3]} 2. Nf3 {[%clk 0:03:00.9]}
2... e6 {[%clk 0:02:49.1]} 3. c3 {[%clk 0:03:01]} 3... Qa5 {[%clk 0:02:47.5]} 4.
Be2 {[%clk 0:02:55.2]} 4... a6 {[%clk 0:02:34]} 5. O-O {[%clk 0:02:54.1]} 5...
b5 {[%clk 0:02:33]} 6. d4 {[%clk 0:02:50.9]} 6... Bb7 {[%clk 0:02:32.9]} 7. dxc5
{[%clk 0:02:33.8]} 7... Bxe4 {[%clk 0:02:25.3]} 8. b4 {[%clk 0:02:34]} 8... Qc7
{[%clk 0:02:25.9]} 9. a4 {[%clk 0:02:32.2]} 9... bxa4 {[%clk 0:02:25]} 10. Nbd2
{[%clk 0:02:22.3]} 10... Bb7 {[%clk 0:02:21.2]} 11. Nc4 {[%clk 0:02:21.1]} 11...
Nf6 {[%clk 0:02:18.5]} 12. Nfe5 {[%clk 0:01:17.9]} 12... Nc6 {[%clk 0:02:05.9]}
13. Bf4 {[%clk 0:01:15.6]} 13... Nd5 {[%clk 0:01:54.8]} 14. Qd2 {[%clk
0:00:57.8]} 14... Nxf4 {[%clk 0:01:43]} 15. Qxf4 {[%clk 0:00:57.9]} 15... f6
{[%clk 0:01:43]} 16. Bh5+ {[%clk 0:00:56.6]} 16... Ke7 {[%clk 0:01:26.9]} 17.
Ng6+ {[%clk 0:00:49.9]} 1-0

[Event "*** Titled Tuesday Blitz"]
[Site "Chess.com"]
[Date "2020.11.24"]
[Round "7"]
[White "Ajedrez_con_German"]
[Black "zaur-mammadov"]
[Result "0-1"]
[WhiteElo "2496"]
[BlackElo "2658"]
[TimeControl "180+1"]
[EndTime "11:32:28 PST"]
[Termination "zaur-mammadov won on time"]

1. Nf3 {[%clk 0:03:00.9]} 1... d5 {[%clk 0:02:59.6]} 2. e3 {[%clk 0:03:01]} 2...
Nf6 {[%clk 0:03:00]} 3. c4 {[%clk 0:02:58.5]} 3... dxc4 {[%clk 0:02:58.5]} 4.
Bxc4 {[%clk 0:02:58]} 4... c5 {[%clk 0:02:58.7]} 5. O-O {[%clk 0:02:56.1]} 5...
e6 {[%clk 0:02:59.3]} 6. b3 {[%clk 0:02:51.8]} 6... Nc6 {[%clk 0:02:58.8]} 7.
Bb2 {[%clk 0:02:51.7]} 7... Be7 {[%clk 0:02:59.4]} 8. d4 {[%clk 0:02:50.9]} 8...
cxd4 {[%clk 0:02:58]} 9. Nxd4 {[%clk 0:02:51]} 9... Nxd4 {[%clk 0:02:58]} 10.
Qxd4 {[%clk 0:02:51.9]} 10... Qxd4 {[%clk 0:02:57]} 11. Bxd4 {[%clk 0:02:52]}
11... a6 {[%clk 0:02:57.9]} 12. Be2 {[%clk 0:02:45.6]} 12... O-O {[%clk
0:02:41.2]} 13. Nd2 {[%clk 0:02:42.6]} 13... b5 {[%clk 0:02:32.2]} 14. a4 {[%clk
0:02:28.3]} 14... bxa4 {[%clk 0:02:29.5]} 15. Rxa4 {[%clk 0:02:27]} 15... Bb7
{[%clk 0:02:29.5]} 16. Rfa1 {[%clk 0:02:19.6]} 16... Rfc8 {[%clk 0:02:29.1]} 17.
Bxa6 {[%clk 0:02:05.7]} 17... Bxa6 {[%clk 0:02:28.9]} 18. Rxa6 {[%clk 0:02:06]}
18... Rxa6 {[%clk 0:02:29.3]} 19. Rxa6 {[%clk 0:02:06.8]} 19... Rc1+ {[%clk
0:02:16]} 20. Nf1 {[%clk 0:02:06.3]} 20... h5 {[%clk 0:02:16.6]} 21. Ra1 {[%clk
0:01:58.9]} 21... Rc8 {[%clk 0:02:14.4]} 22. Bxf6 {[%clk 0:01:51.8]} 22... Bxf6
{[%clk 0:02:13.1]} 23. Rb1 {[%clk 0:01:51.7]} 23... g6 {[%clk 0:02:13.1]} 0-1

[Event "*** Titled Tuesday Blitz"]
[Site "Chess.com"]
[Date "2020.11.24"]
[Round "7"]
[White "PIwan"]
[Black "MillyNeuf"]
[Result "1-0"]
[WhiteElo "2549"]
[BlackElo "2389"]
[TimeControl "180+1"]
[EndTime "11:32:32 PST"]
[Termination "PIwan won by resignation"]

1. c4 {[%clk 0:03:00.9]} 1... Nf6 {[%clk 0:02:59.2]} 2. Nc3 {[%clk 0:02:55]}
2... e6 {[%clk 0:02:59.4]} 3. e4 {[%clk 0:02:55.6]} 3... d5 {[%clk 0:02:59.3]}
4. e5 {[%clk 0:02:56.3]} 4... d4 {[%clk 0:02:59.3]} 5. exf6 {[%clk 0:02:57.2]}
5... dxc3 {[%clk 0:02:59.5]} 6. bxc3 {[%clk 0:02:58.1]} 6... Qxf6 {[%clk
0:02:59]} 7. Nf3 {[%clk 0:02:59]} 7... b6 {[%clk 0:02:59.1]} 8. d4 {[%clk
0:02:57.6]} 8... h6 {[%clk 0:02:59.5]} 9. Bd3 {[%clk 0:02:55.2]} 9... Bb7 {[%clk
0:02:59.5]} 10. Qe2 {[%clk 0:02:54.6]} 10... Nd7 {[%clk 0:02:57.7]} 11. Be4
{[%clk 0:02:51.7]} 11... Bxe4 {[%clk 0:02:51.3]} 12. Qxe4 {[%clk 0:02:52.6]}
12... Qd8 {[%clk 0:02:51.8]} 13. O-O {[%clk 0:02:46.7]} 13... Nf6 {[%clk
0:02:51.5]} 14. Qc6+ {[%clk 0:02:45.8]} 14... Nd7 {[%clk 0:02:47.7]} 15. Ne5
{[%clk 0:02:44.4]} 15... Rc8 {[%clk 0:02:39.5]} 16. c5 {[%clk 0:01:41]} 16...
Be7 {[%clk 0:02:32.5]} 17. Qa4 {[%clk 0:01:34.1]} 17... bxc5 {[%clk 0:02:23.9]}
18. d5 {[%clk 0:01:09]} 18... Bd6 {[%clk 0:01:56.6]} 19. dxe6 {[%clk 0:00:46.2]}
19... fxe6 {[%clk 0:01:36.7]} 20. Ng6 {[%clk 0:00:44]} 20... Kf7 {[%clk
0:01:28.5]} 21. Nxh8+ {[%clk 0:00:41.9]} 21... Qxh8 {[%clk 0:01:25.7]} 22. Qxd7+
{[%clk 0:00:41.6]} 1-0

[Event "*** Titled Tuesday Blitz"]
[Site "Chess.com"]
[Date "2020.11.24"]
[Round "7"]
[White "Kotofeyca"]
[Black "Anna_ChessMate"]
[Result "1-0"]
[WhiteElo "2426"]
[BlackElo "2570"]
[TimeControl "180+1"]
[EndTime "11:32:33 PST"]
[Termination "Kotofeyca won by resignation"]

1. d4 {[%clk 0:03:00.9]} 1... d5 {[%clk 0:02:59.6]} 2. c4 {[%clk 0:03:00.8]}
2... c6 {[%clk 0:03:00]} 3. Nc3 {[%clk 0:03:00.7]} 3... Nf6 {[%clk 0:03:00.3]}
4. cxd5 {[%clk 0:02:59.8]} 4... cxd5 {[%clk 0:03:01.2]} 5. Bf4 {[%clk
0:02:59.8]} 5... Nc6 {[%clk 0:03:01.6]} 6. e3 {[%clk 0:03:00]} 6... Bf5 {[%clk
0:03:01.7]} 7. Bb5 {[%clk 0:02:57.4]} 7... e6 {[%clk 0:02:59.4]} 8. Qa4 {[%clk
0:02:57.3]} 8... Rc8 {[%clk 0:02:55.3]} 9. Qxa7 {[%clk 0:02:52]} 9... Bb4 {[%clk
0:02:46]} 10. Qxb7 {[%clk 0:02:47]} 10... O-O {[%clk 0:02:43.6]} 11. Bxc6 {[%clk
0:02:44.3]} 11... Bxc3+ {[%clk 0:02:41.4]} 12. bxc3 {[%clk 0:02:43.3]} 12... Qa5
{[%clk 0:02:41.9]} 13. Ne2 {[%clk 0:02:37.4]} 13... Bd3 {[%clk 0:02:42.1]} 14.
Bd6 {[%clk 0:01:49.3]} 14... Bxe2 {[%clk 0:02:22]} 15. Bb4 {[%clk 0:01:42.2]}
15... Qa6 {[%clk 0:02:15.4]} 16. Bxf8 {[%clk 0:01:27.9]} 16... Kxf8 {[%clk
0:02:06.7]} 17. Qb4+ {[%clk 0:00:56.3]} 17... Kg8 {[%clk 0:02:02.4]} 18. Bb7
{[%clk 0:00:42.1]} 18... Qd3 {[%clk 0:02:02.5]} 19. Bxc8 {[%clk 0:00:41.5]}
19... Bg4 {[%clk 0:01:39.5]} 20. Ba6 {[%clk 0:00:33.7]} 1-0

[Event "*** Titled Tuesday Blitz"]
[Site "Chess.com"]
[Date "2020.11.24"]
[Round "7"]
[White "EdmundPlayer"]
[Black "Agoking701"]
[Result "0-1"]
[WhiteElo "2145"]
[BlackElo "2349"]
[TimeControl "180+1"]
[EndTime "11:32:35 PST"]
[Termination "Agoking701 won by resignation"]

1. e4 {[%clk 0:03:00.9]} 1... d6 {[%clk 0:02:44.1]} 2. d4 {[%clk 0:03:00.1]}
2... Nf6 {[%clk 0:02:44.5]} 3. Nc3 {[%clk 0:02:59.6]} 3... Nbd7 {[%clk 0:02:45]}
4. Nge2 {[%clk 0:02:56.7]} 4... e5 {[%clk 0:02:44.5]} 5. g3 {[%clk 0:02:55.1]}
5... Be7 {[%clk 0:02:45]} 6. Bg2 {[%clk 0:02:55.2]} 6... O-O {[%clk 0:02:45.6]}
7. Be3 {[%clk 0:02:55.1]} 7... Re8 {[%clk 0:02:43.4]} 8. h3 {[%clk 0:02:54.8]}
8... Bf8 {[%clk 0:02:41.6]} 9. O-O {[%clk 0:02:40.8]} 9... c6 {[%clk 0:02:39.7]}
10. f4 {[%clk 0:02:33.6]} 10... Qc7 {[%clk 0:02:32]} 11. Qd2 {[%clk 0:02:24.2]}
11... b5 {[%clk 0:02:22.6]} 12. Rae1 {[%clk 0:02:06.4]} 12... a5 {[%clk
0:02:15.7]} 13. g4 {[%clk 0:01:19.1]} 13... b4 {[%clk 0:02:14.5]} 14. Nd1 {[%clk
0:01:18.6]} 14... exd4 {[%clk 0:02:07.7]} 15. Qxd4 {[%clk 0:01:09]} 15... Nc5
{[%clk 0:01:49]} 16. Nf2 {[%clk 0:01:02.1]} 16... d5 {[%clk 0:01:37.7]} 17. Ng3
{[%clk 0:00:57]} 17... Ba6 {[%clk 0:01:34.7]} 18. Nd3 {[%clk 0:00:53.1]} 18...
Nfxe4 {[%clk 0:01:31]} 19. Nxc5 {[%clk 0:00:47.7]} 19... Bxc5 {[%clk 0:01:28.7]}
20. Qxc5 {[%clk 0:00:39.7]} 20... Nxc5 {[%clk 0:01:25.5]} 21. Bxc5 {[%clk
0:00:40.6]} 21... Bxf1 {[%clk 0:01:25.2]} 22. Rxe8+ {[%clk 0:00:38.8]} 22...
Rxe8 {[%clk 0:01:24.3]} 23. Nxf1 {[%clk 0:00:38.1]} 0-1

[Event "*** Titled Tuesday Blitz"]
[Site "Chess.com"]
[Date "2020.11.24"]
[Round "7"]
[White "kingofthenil"]
[Black "IrishMonkey"]
[Result "1-0"]
[WhiteElo "2769"]
[BlackElo "2565"]
[TimeControl "180+1"]
[EndTime "11:32:47 PST"]
[Termination "kingofthenil won by resignation"]

1. e4 {[%clk 0:03:00.9]} 1... c5 {[%clk 0:02:56.4]} 2. d3 {[%clk 0:03:01.1]}
2... g6 {[%clk 0:02:54.6]} 3. g3 {[%clk 0:03:01.7]} 3... Bg7 {[%clk 0:02:52.2]}
4. Bg2 {[%clk 0:03:02.6]} 4... Nc6 {[%clk 0:02:50.1]} 5. f4 {[%clk 0:03:02.6]}
5... d6 {[%clk 0:02:48.2]} 6. Nf3 {[%clk 0:03:02.5]} 6... e6 {[%clk 0:02:46.2]}
7. O-O {[%clk 0:03:03.4]} 7... Nge7 {[%clk 0:02:44.4]} 8. c3 {[%clk 0:03:04]}
8... O-O {[%clk 0:02:41.8]} 9. Be3 {[%clk 0:03:04.5]} 9... b6 {[%clk 0:02:38.8]}
10. d4 {[%clk 0:03:04.7]} 10... Ba6 {[%clk 0:02:36.1]} 11. Re1 {[%clk 0:03:05]}
11... Qd7 {[%clk 0:02:34.1]} 12. Qd2 {[%clk 0:03:02.9]} 12... cxd4 {[%clk
0:02:30.9]} 13. cxd4 {[%clk 0:03:03.8]} 13... Rac8 {[%clk 0:02:28.3]} 14. Na3
{[%clk 0:02:59]} 14... Nd8 {[%clk 0:02:22.3]} 15. b3 {[%clk 0:02:36.8]} 15...
Nb7 {[%clk 0:02:19.6]} 16. Bf2 {[%clk 0:02:32.5]} 16... Nc6 {[%clk 0:02:19.3]}
17. Rad1 {[%clk 0:02:26]} 17... d5 {[%clk 0:02:16.4]} 18. e5 {[%clk 0:02:26.1]}
18... Rfd8 {[%clk 0:02:13.3]} 19. g4 {[%clk 0:02:26.4]} 19... f5 {[%clk
0:02:12.4]} 20. exf6 {[%clk 0:01:42.8]} 20... Bxf6 {[%clk 0:02:11.7]} 21. Nc2
{[%clk 0:01:43.7]} 21... Rf8 {[%clk 0:02:03.3]} 22. Ne3 {[%clk 0:01:29.7]} 22...
Kh8 {[%clk 0:02:03.5]} 23. g5 {[%clk 0:01:29.6]} 23... Bg7 {[%clk 0:02:03.4]}
24. Ng4 {[%clk 0:01:30.5]} 24... Nbd8 {[%clk 0:01:58.5]} 25. Nf6 {[%clk
0:01:19.5]} 25... Bxf6 {[%clk 0:01:56.9]} 26. gxf6 {[%clk 0:01:20.4]} 26... Qf7
{[%clk 0:01:56.8]} 27. Bh4 {[%clk 0:01:09.4]} 27... Nb7 {[%clk 0:01:49]} 28. Ng5
{[%clk 0:00:51.9]} 28... Qd7 {[%clk 0:01:45.1]} 29. Nxe6 {[%clk 0:00:39.7]}
29... Rf7 {[%clk 0:01:38.1]} 30. Bh3 {[%clk 0:00:40]} 30... Qe8 {[%clk
0:01:36.4]} 31. Ng5 {[%clk 0:00:37.4]} 31... Rcc7 {[%clk 0:01:33.6]} 32. Rxe8+
{[%clk 0:00:36.7]} 1-0

[Event "*** Titled Tuesday Blitz"]
[Site "Chess.com"]
[Date "2020.11.24"]
[Round "7"]
[White "Savagelittlemole"]
[Black "romulocardoso"]
[Result "1-0"]
[WhiteElo "2560"]
[BlackElo "2140"]
[TimeControl "180+1"]
[EndTime "11:32:48 PST"]
[Termination "Savagelittlemole won by checkmate"]

1. e4 {[%clk 0:03:00.9]} 1... c5 {[%clk 0:02:57]} 2. Ne2 {[%clk 0:03:00.5]} 2...
d6 {[%clk 0:02:57.2]} 3. g3 {[%clk 0:03:00.7]} 3... Nf6 {[%clk 0:02:57.2]} 4.
Bg2 {[%clk 0:03:01.3]} 4... g6 {[%clk 0:02:57.5]} 5. O-O {[%clk 0:03:02]} 5...
Bg7 {[%clk 0:02:57.8]} 6. c3 {[%clk 0:03:02.7]} 6... O-O {[%clk 0:02:58.1]} 7.
d4 {[%clk 0:03:03.3]} 7... cxd4 {[%clk 0:02:58.5]} 8. cxd4 {[%clk 0:03:04.2]}
8... Nbd7 {[%clk 0:02:58.8]} 9. Nbc3 {[%clk 0:03:04.7]} 9... e5 {[%clk
0:02:58.9]} 10. h3 {[%clk 0:03:04.5]} 10... b6 {[%clk 0:02:56.6]} 11. Be3 {[%clk
0:03:04.3]} 11... Bb7 {[%clk 0:02:56.6]} 12. d5 {[%clk 0:03:04.7]} 12... Rc8
{[%clk 0:02:56.7]} 13. Rc1 {[%clk 0:03:04.6]} 13... Nc5 {[%clk 0:02:56.6]} 14.
b4 {[%clk 0:03:02.4]} 14... Ncd7 {[%clk 0:02:56.5]} 15. Nb5 {[%clk 0:03:01.8]}
15... Qe7 {[%clk 0:02:50.9]} 16. Nxa7 {[%clk 0:02:41.8]} 16... Ra8 {[%clk
0:02:50.4]} 17. Nb5 {[%clk 0:02:42]} 17... Rxa2 {[%clk 0:02:48.7]} 18. Rc7
{[%clk 0:02:38.2]} 18... Ba6 {[%clk 0:02:47.2]} 19. Nec3 {[%clk 0:02:38.4]}
19... Rb2 {[%clk 0:02:43.3]} 20. Qa4 {[%clk 0:02:34.4]} 20... Ra8 {[%clk
0:02:27.5]} 21. Qa3 {[%clk 0:02:29]} 21... Ne8 {[%clk 0:02:22.5]} 22. Qxb2
{[%clk 0:02:26.1]} 22... Nxc7 {[%clk 0:02:13.1]} 23. Nxc7 {[%clk 0:02:27]} 23...
Bxf1 {[%clk 0:02:12]} 24. Nxa8 {[%clk 0:02:24.1]} 24... Bxg2 {[%clk 0:02:11.7]}
25. Kxg2 {[%clk 0:02:25]} 25... Qd8 {[%clk 0:02:12]} 26. Qa3 {[%clk 0:02:22.2]}
26... Qb8 {[%clk 0:02:10.7]} 27. Qa6 {[%clk 0:02:18.1]} 27... f5 {[%clk
0:02:10.3]} 28. Nxb6 {[%clk 0:02:15.1]} 28... Nxb6 {[%clk 0:01:50.5]} 29. Qxb6
{[%clk 0:02:16]} 29... Qf8 {[%clk 0:01:50.6]} 30. Qc7 {[%clk 0:02:02.6]} 30...
f4 {[%clk 0:01:50.4]} 31. Ba7 {[%clk 0:01:58.7]} 31... g5 {[%clk 0:01:37.4]} 32.
Qb8 {[%clk 0:01:52.9]} 32... h5 {[%clk 0:01:32.8]} 33. b5 {[%clk 0:01:50.6]}
33... g4 {[%clk 0:01:31.1]} 34. hxg4 {[%clk 0:01:49.6]} 34... hxg4 {[%clk
0:01:32]} 35. gxf4 {[%clk 0:01:47.6]} 35... exf4 {[%clk 0:01:32]} 36. Na4 {[%clk
0:01:38.8]} 36... Kh7 {[%clk 0:01:30.3]} 37. Qxf8 {[%clk 0:01:37.8]} 37... Bxf8
{[%clk 0:01:30.5]} 38. b6 {[%clk 0:01:38.4]} 38... Bg7 {[%clk 0:01:30.1]} 39. b7
{[%clk 0:01:38.1]} 39... f3+ {[%clk 0:01:29.8]} 40. Kf1 {[%clk 0:01:38.4]} 40...
Bd4 {[%clk 0:01:24.5]} 41. b8=Q {[%clk 0:01:34.2]} 41... g3 {[%clk 0:01:23.7]}
42. Bxd4 {[%clk 0:01:29.8]} 42... g2+ {[%clk 0:01:23.6]} 43. Kg1 {[%clk
0:01:30.2]} 43... Kg6 {[%clk 0:01:23.3]} 44. Qxd6+ {[%clk 0:01:29.6]} 44... Kg5
{[%clk 0:01:22.9]} 45. Qf6+ {[%clk 0:01:29.4]} 45... Kg4 {[%clk 0:01:21.4]} 46.
Qf5+ {[%clk 0:01:29.5]} 46... Kh4 {[%clk 0:01:19.6]} 47. Bf6# {[%clk 0:01:30]}
1-0

[Event "*** Titled Tuesday Blitz"]
[Site "Chess.com"]
[Date "2020.11.24"]
[Round "7"]
[White "halldorgretar"]
[Black "akanga001"]
[Result "1-0"]
[WhiteElo "2166"]
[BlackElo "1937"]
[TimeControl "180+1"]
[EndTime "11:32:48 PST"]
[Termination "halldorgretar won by resignation"]

1. d4 {[%clk 0:03:00.9]} 1... Nf6 {[%clk 0:02:41.8]} 2. c4 {[%clk 0:03:00.1]}
2... b6 {[%clk 0:02:42.7]} 3. Nf3 {[%clk 0:02:57.7]} 3... Bb7 {[%clk 0:02:38.2]}
4. g3 {[%clk 0:02:58]} 4... d6 {[%clk 0:02:37.6]} 5. Bg2 {[%clk 0:02:58.3]} 5...
Ne4 {[%clk 0:02:36.6]} 6. O-O {[%clk 0:02:58.2]} 6... Nd7 {[%clk 0:02:36.6]} 7.
Ng5 {[%clk 0:02:50.7]} 7... Ndf6 {[%clk 0:02:35.4]} 8. Nxe4 {[%clk 0:02:46.2]}
8... Bxe4 {[%clk 0:02:33.9]} 9. f3 {[%clk 0:02:43.1]} 9... Bb7 {[%clk
0:02:28.2]} 10. e4 {[%clk 0:02:42.4]} 10... e6 {[%clk 0:02:19.7]} 11. Nc3 {[%clk
0:02:40.2]} 11... Be7 {[%clk 0:02:19.4]} 12. Bg5 {[%clk 0:02:33]} 12... h6
{[%clk 0:02:17.2]} 13. Be3 {[%clk 0:02:31.5]} 13... O-O {[%clk 0:02:15.4]} 14.
Qc2 {[%clk 0:02:26.2]} 14... a6 {[%clk 0:02:11.5]} 15. Rad1 {[%clk 0:02:24.7]}
15... Qc8 {[%clk 0:02:07.8]} 16. f4 {[%clk 0:02:11.3]} 16... Ng4 {[%clk
0:02:06.6]} 17. Bc1 {[%clk 0:02:05.9]} 17... f5 {[%clk 0:02:04.7]} 18. exf5
{[%clk 0:01:36.9]} 18... exf5 {[%clk 0:02:04.3]} 19. Nd5 {[%clk 0:01:30.6]}
19... Bf6 {[%clk 0:01:57.8]} 20. h3 {[%clk 0:01:28]} 20... Re8 {[%clk
0:01:24.4]} 21. hxg4 {[%clk 0:01:26.1]} 21... fxg4 {[%clk 0:01:21.9]} 22. Nxf6+
{[%clk 0:01:24.6]} 22... gxf6 {[%clk 0:01:20.5]} 23. Qg6+ {[%clk 0:01:24.9]}
23... Kf8 {[%clk 0:01:17.4]} 24. Qxf6+ {[%clk 0:01:24]} 24... Kg8 {[%clk
0:01:16.8]} 25. Qg6+ {[%clk 0:01:23.8]} 25... Kf8 {[%clk 0:01:16.2]} 26. f5
{[%clk 0:01:17.7]} 26... Bxg2 {[%clk 0:01:14.2]} 27. Bxh6+ {[%clk 0:01:14.1]}
27... Ke7 {[%clk 0:01:09]} 28. Qg7+ {[%clk 0:01:13.6]} 28... Kd8 {[%clk
0:01:04.4]} 29. Bg5+ {[%clk 0:01:13.2]} 1-0